Cogmind - Beta 14 @@@ ROGUE MODE // 2024.08.29 @ 23:21:41 Player: Syanka Result: Destroyed by Lightning with EMDS Performance ------------- Evolutions (4) 2000 Regions Visited (15) 3000 Robots Destroyed (265) 1325 Value Destroyed (9416) 9416 Prototype IDs (44) 880 Alien Tech Used (0) 0 Bonus (883) 883 TOTAL SCORE: 17504 Bonus ------- High Alert Combat Kills 761 Follower Combat Kills 364 Network Hubs Disabled 200 Aligned with FarCom 300 Met Data Miner 300 Friendly Fire -1042 Cogmind --------- Core Integrity 0/850 Matter 282/300 Energy 98/100 System Corruption 17% Temperature Cool (0) Movement Core (50) Location -6/Hub_04(d) Parts ------- > --- POWER (1) -------- (None) > --- PROPULSION (4) --- (None) > --- UTILITY (6) ------ (None) > --- WEAPON (4) ------- (None) > --- INVENTORY (5) ---- Drone Bay (2/2) XL Autogun Array Peak State ------------ > --- POWER ------------ Reinforced Deuterium Engine > --- PROPULSION ------- Carbon-fiber Leg Carbon-fiber Leg Carbon-fiber Leg Flexi-carbon Leg > --- UTILITY ---------- Advanced Heat Sink Huge Storage Unit Advanced Terrain Scan Processor Core Analyzer Hardened Heavy Armor Plating > --- WEAPON ----------- XL Autogun Array > --- INVENTORY -------- Improved Deuterium Engine Light Antimatter Reactor Light Treads Light Treads Carbon-fiber Leg Carbon-fiber Leg Carbon-fiber Leg Improved Heat Sink Advanced Heat Sink Advanced Heat Sink Advanced Heat Sink High-capacity Matter Pod Experimental Utility Shielding High-powered Tractor Beam Drone Bay Heavy Laser Heavy Laser Heavy Laser Heavy Laser Beamcaster Advanced KE Penetrator Advanced KE Penetrator Assault Cannon Long-range Missile Launcher [Rating: 86] Favorites ----------- Power Ion Engine Engine Ion Engine Power Core Light Nuclear Core Propulsion Light Treads Treads Light Treads Leg Carbon-fiber Leg Utility Huge Storage Unit Device Improved Terrain Scanner Storage Huge Storage Unit Processor Machine Analyzer Hackware Improved Hacking Suite Protection Hardened Heavy Armor Plating Weapon Assault Rifle Energy Gun Heavy Laser Energy Cannon Cooled Particle Cannon Ballistic Gun Assault Rifle Ballistic Cannon Heavy Assault Cannon Launcher Long-range Missile Launcher Special Weapon Mining Laser Impact Weapon Great Maul Special Melee Weapon Advanced Datajack Build | -11 -10 -10 -10 -9 -8 -7 -7 -7 -7 -6 -6 -6 -6 -6 -6 ------- Run | Yrd Mat Min Exi Min Mat Fac Low Low Dat Pro Fac Ext Cet Arc Hub Slots Evolved 8 | . . . . . 4 2 . . . . 2 . . . . Power . | . . . . . . . . . . . . . . . . Propulsion 2 | . . . . . . 1 . . . . 1 . . . . Utility 4 | . . . . . 2 1 . . . . 1 . . . . Weapon 2 | . . . . . 2 . . . . . . . . . . Parts Attached 362 | 9 12 7 . 5 87 56 22 3 3 10 48 23 38 18 21 Power 16 | 1 . 1 . . 5 2 2 . . . 2 . 3 . . Engine 12 | 1 . 1 . . 2 2 2 . . . 1 . 3 . . Core 4 | . . . . . 3 . . . . . 1 . . . . Reactor . | . . . . . . . . . . . . . . . . Propulsion 58 | 2 1 . . 1 10 6 4 . . . 12 4 4 6 8 Treads 52 | 2 1 . . 1 10 6 4 . . . 12 4 . 5 7 Leg 6 | . . . . . . . . . . . . . 4 1 1 Wheel . | . . . . . . . . . . . . . . . . Hover . | . . . . . . . . . . . . . . . . Flight . | . . . . . . . . . . . . . . . . Utility 153 | 3 5 5 . 3 20 37 10 3 . 5 21 14 16 6 5 Device 93 | 2 . 3 . 1 13 27 8 1 . 4 12 7 6 6 3 Storage 7 | 1 3 . . . . 1 . . . . . . 2 . . Processor 8 | . . . . . 2 2 . . . . 1 1 2 . . Hackware 3 | . . . . . . . . . . . . . 3 . . Protection 42 | . 2 2 . 2 5 7 2 2 . 1 8 6 3 . 2 Artifact . | . . . . . . . . . . . . . . . . Weapon 135 | 3 6 1 . 1 52 11 6 . 3 5 13 5 15 6 8 Energy Gun 24 | 1 . . . . 10 2 1 . . . . . 2 5 3 Energy Cannon 33 | . . . . . 1 5 3 . 2 4 8 2 6 . 2 Ballistic Gun 35 | 2 3 1 . 1 23 . . . . . . . 4 . 1 Ballistic Cannon 20 | . . . . . 5 4 . . 1 1 3 2 2 . 2 Launcher 9 | . . . . . 4 . 1 . . . 2 1 1 . . Special Weapon 3 | . 3 . . . . . . . . . . . . . . Impact Weapon 10 | . . . . . 9 . 1 . . . . . . . . Slashing Weapon . | . . . . . . . . . . . . . . . . Piercing Weapon . | . . . . . . . . . . . . . . . . Special Melee Weapon 1 | . . . . . . . . . . . . . . 1 . Unidentified Prototypes 7 | . . . . 1 3 2 . . . . . . 1 . . Corrupted Parts 2 | . . . . . . . . . . . 1 . 1 . . System Corruption 6 | . . . . . . . . . . . 3 . 3 . . Parts Lost 46 | . . . . . 9 . 1 1 . 1 5 2 15 1 11 Power 2 | . . . . . 1 . . . . . . . 1 . . Propulsion 18 | . . . . . 2 . 1 . . . 2 1 4 1 7 Utility 11 | . . . . . 2 . . 1 . . 2 . 5 . 1 Weapon 15 | . . . . . 4 . . . . 1 1 1 5 . 3 Highest Loss Streak 10 | . . . . . 9 . 1 1 . 1 4 1 10 1 9 To Critical Strikes 1 | . . . . . . . . . . . . . 1 . . Average Slot Usage (%) 93 | . 99 100 100 100 94 91 91 91 70 98 96 94 72 86 97 Engine 7 | . 14 14 14 14 4 7 7 7 7 7 . 6 5 6 6 Core 1 | . . . . . 4 . . . . . 5 . . . . Treads 23 | . 27 28 28 28 17 23 22 23 23 23 25 26 8 25 25 Device 11 | . 1 13 14 4 9 12 14 14 15 21 18 13 10 7 18 Storage 8 | . 16 14 14 14 9 7 7 7 7 7 6 6 5 6 6 Processor 6 | . . . . . 8 14 15 14 7 1 . 1 8 6 6 Protection 5 | . 9 . . 9 8 2 . . 7 7 10 12 4 6 5 Energy Gun 5 | . . . . . 9 1 . . . . . . . 25 14 Energy Cannon 6 | . . . . . . 2 14 15 . 26 15 23 7 . 9 Ballistic Gun 9 | . 24 28 28 28 18 . . . . . . . 2 . . Ballistic Cannon 3 | . . . . . 2 17 7 7 . 1 9 2 1 . . Peak Build Rating 86 | 10 10 10 13 22 45 49 58 58 56 62 74 63 86 86 70 Average Rating 40 | 7 8 9 11 13 28 42 55 56 40 57 69 60 56 60 64 On Entrance 40 | . 10 9 10 13 14 34 49 57 56 56 59 63 60 86 64 Naked Turns 5 | . . . . . . . . . . . . . . . 5 Heaviest Build 168 | 15 54 52 50 53 70 126 138 122 122 126 168 153 131 136 143 Greatest Support 106 | 40 40 40 40 40 40 68 68 68 68 68 106 101 83 86 96 Greatest Overweight (x) 45 | . 1 16 1 1 2 2 2 1 1 1 1 1 2 45 1 Average Overweight (x) 2 | . . 5 1 1 1 1 1 1 1 1 1 1 1 15 . Largest Inventory Capacity 25 | 8 20 20 20 20 20 25 25 25 25 25 25 25 25 25 25 Average Capacity 22 | 7 19 20 20 20 20 20 25 25 25 25 25 25 23 25 24 Most Carried 25 | 7 20 20 20 20 20 25 25 25 25 25 25 25 25 25 25 Average Carried 21 | 5 13 19 19 19 19 20 24 24 25 22 24 24 20 24 24 Final Capacity 25 | 8 20 20 20 20 20 25 25 25 25 25 25 25 25 25 5 Final Carried 25 | 7 20 20 20 20 20 25 25 25 25 22 25 25 25 25 5 Class Distribution -------------------- 29% | Skirmisher 29% | Scavenger-Skirmisher 24% | Mutant 6% | Tank 5% | Scavenger-Tank Dominant Class ---------------- Mutant | -10/Materials Mutant | -10/Mines Mutant | -10/Exiles Mutant | -9/Mines Skirmisher | -8/Materials Scavenger-Skirmisher | -7/Factory Skirmisher | -7/Lower Caves Skirmisher | -7/Lower Caves Mutant | -7/Data Miner Tank | -6/Proximity Caves Skirmisher | -6/Factory Scavenger-Tank | -6/Extension Scavenger-Skirmisher | -6/Cetus Scavenger-Skirmisher | -6/Archives Scavenger-Skirmisher | -6/Hub_04(d) Resources | -11 -10 -10 -10 -9 -8 -7 -7 -7 -7 -6 -6 -6 -6 -6 -6 ----------- Run | Yrd Mat Min Exi Min Mat Fac Low Low Dat Pro Fac Ext Cet Arc Hub Matter Collected 8613 | 420 513 119 . 62 1614 1544 437 73 . 129 1377 649 1109 366 201 Remotely 2698 | . . . . . 328 1138 302 . . 114 806 10 . . . Salvage Created 10496 | 312 643 20 . 32 1645 1318 325 140 . 247 1761 1357 961 646 1089 Parts 527 | 32 41 . . 5 107 59 15 7 . 13 82 53 35 24 54 Haulers Intercepted 6 | . 1 . . . 1 4 . . . . . . . . . Recyclers Shooed 6 | . 2 . . . 2 . . . . . 1 1 . . . Parts Field Recycled . | . . . . . . . . . . . . . . . . Retrieved Matter . | . . . . . . . . . . . . . . . . Parts Self-Destructed 22 | . . . . . . . 7 4 . 11 . . . . . Prevented . | . . . . . . . . . . . . . . . . Kills | -11 -10 -10 -10 -9 -8 -7 -7 -7 -7 -6 -6 -6 -6 -6 -6 ------- Run | Yrd Mat Min Exi Min Mat Fac Low Low Dat Pro Fac Ext Cet Arc Hub Combat Hostiles Destroyed 179 | . 13 2 . 2 33 17 8 2 . 6 32 21 18 4 21 Guns 60 | . 13 2 . 2 19 . . . . . . . 12 3 9 Cannons 95 | . . . . . 7 16 4 2 . 5 30 20 1 . 10 AOE 17 | . . . . . 7 . 4 . . . 2 . 4 . . Classes Destroyed 22 | 3 4 1 . . 6 2 1 . . 2 3 . . . . Worker 17 | 1 3 . . . 2 1 . . . . 9 . . . 1 Builder 9 | . . . . . 1 1 . . . . 5 1 . . 1 Tunneler 12 | 9 1 . . . 1 1 . . . . . . . . . Hauler 6 | . 1 . . . 1 4 . . . . . . . . . Recycler 14 | 1 3 . . . 2 6 . . . . 1 1 . . . Mechanic 2 | . 1 . . . . . . . . . 1 . . . . Operator 14 | . . . . . 2 . . . . . 1 1 . 9 1 Drone 2 | . . . . . . . . . . 2 . . . . . Watcher 9 | . . . . . 3 3 . . . . . 2 . . 1 Swarmer 34 | . 9 . . 2 8 . 1 . . . . 4 3 . 7 Saboteur 2 | . . . . . . . . . . . 1 . . . 1 Grunt 73 | . 4 . . . 13 5 5 2 . 2 18 9 11 . 4 Brawler 9 | . . . . . 2 . . . . 1 3 1 1 . 1 Duelist 6 | . . . . . . 1 . . . . 2 1 . . 2 Sentry 29 | . . . . . 9 7 1 . . . 2 4 . 4 2 Demolisher 1 | . . . . . . . . . . . 1 . . . . Hunter 5 | . . . . . . . . . . . 1 . 2 . 2 Programmer 9 | . . . . . . 4 . . . . 3 1 . . 1 Heavy 2 | . . . . . 1 . . . . . 1 . . . . Behemoth 3 | . . . . . . . . . . 1 . 1 . . 1 Cetus Guard 1 | . . . . . . . . . . . . . 1 . . Decomposer 1 | . . . . . . . . . . 1 . . . . . Assembled 2 | . . 2 . . . . . . . . . . . . . Thug 3 | . . . . . . . . . . . . 1 2 . . Mutant 3 | . . . . . . . 2 1 . . . . . . . Best Kill Streak 12 | 4 7 1 . 2 5 4 7 2 . 3 8 4 12 3 9 Combat Bots Only 12 | . 4 1 . 2 5 2 7 2 . 3 5 4 12 2 8 Max Kills in Single Turn 6 | 1 2 1 . 2 4 2 2 1 . 1 6 1 2 1 2 Gunslinging 1 | . . . . 1 . . . . . . . . . . . Exploded 4 | . . . . . 4 . 2 . . . 1 . 2 . . Melee . | . . . . . . . . . . . . . . . . Uniques/NPCs Destroyed . | . . . . . . . . . . . . . . . . Combat | -11 -10 -10 -10 -9 -8 -7 -7 -7 -7 -6 -6 -6 -6 -6 -6 -------- Run | Yrd Mat Min Exi Min Mat Fac Low Low Dat Pro Fac Ext Cet Arc Hub Hostile Shots Fired 1168 | . 52 1 . 6 137 148 43 13 . 48 208 137 130 26 219 Missed 377 | . 11 . . 2 49 60 10 4 . 19 76 48 36 6 56 Damage Taken 12802 | . 364 10 . 32 1697 826 578 152 . 492 2643 1099 1668 479 2762 Core 1225 | . 61 . . 10 192 61 . . . 31 193 106 85 73 413 Absorbed by Shields 19 | . . . . . . . . . . . . . 19 . . Redirected to Shielding 19 | . 2 . . . . . . . . . 17 . . . . Ignored by Resistances 197 | . . . . . . . 13 . . . 184 . . . . Regen/Repaired (Parts) 515 | . 37 . . . 148 330 . . . . . . . . . Core Remaining (%) 80 | 100 . . . 71 65 . . . . 86 . . . . . Volleys Fired 590 | 22 67 4 . 2 113 66 14 8 . 14 77 52 55 50 46 Largest 4 | 2 2 2 . 2 4 3 3 3 . 4 4 4 4 4 4 Hottest 324 | 40 100 40 . 43 168 188 240 120 . 240 281 265 274 294 324 Shots Fired 1528 | 44 117 8 . 4 268 185 34 22 . 42 249 175 67 150 163 Gun 664 | 44 109 8 . 4 227 6 . . . . . . 20 150 96 Cannon 840 | . . . . . 38 179 32 22 . 42 246 175 39 . 67 Launcher 16 | . . . . . 3 . 2 . . . 3 . 8 . . Special 8 | . 8 . . . . . . . . . . . . . . Kinetic 732 | 44 109 8 . 4 202 146 10 6 . 12 111 34 31 9 6 Thermal 763 | . 8 . . . 63 39 22 16 . 29 134 141 13 141 157 Explosive 16 | . . . . . 3 . 2 . . . 3 . 8 . . Electromagnetic 17 | . . . . . . . . . . 1 1 . 15 . . Robot Hit Streak 19 | 5 9 2 . 2 15 9 13 14 . 15 14 11 9 19 12 Robot Miss Streak 6 | 3 4 4 . 1 6 6 1 4 . 5 4 4 5 6 4 Penetration Max 1 | . . . . . . 1 . . . . . . . . . Secondary Targets 3 | . 1 . . 1 1 . . . . . . . . . . Max Gunslinging Chain 1 | . 1 . . 1 1 . . . . . . . . . . Shots Hit Robots 886 | 27 61 3 . 3 164 97 19 14 . 26 133 92 55 86 106 Core Hits 471 | 13 32 3 . 2 72 38 17 7 . 7 90 47 44 36 63 Critical Kills 1 | . . . . . . . . . . . . 1 . . . Critical Parts Destroyed 1 | . 1 . . . . . . . . . . . . . . Critical Strikes 32 | . 1 . . . 9 8 1 . . . 2 2 3 3 3 Burn 13 | . . . . . 7 . . . . . . . . 3 3 Meltdown 1 | . . . . . . . . . . . . 1 . . . Destroy 1 | . 1 . . . . . . . . . . . . . . Blast 16 | . . . . . 2 8 1 . . . 2 1 2 . . Corrupt 1 | . . . . . . . . . . . . . 1 . . Melee Attacks 16 | . . . . . 15 . 1 . . . . . . . . Impact 16 | . . . . . 15 . 1 . . . . . . . . Slashing . | . . . . . . . . . . . . . . . . Piercing . | . . . . . . . . . . . . . . . . Sneak Attacks . | . . . . . . . . . . . . . . . . Combat Hostiles . | . . . . . . . . . . . . . . . . Follow-up Attacks . | . . . . . . . . . . . . . . . . Damage Inflicted 28418 | 356 846 50 . 46 4196 3844 998 450 . 1095 5809 2798 2696 2378 2856 Guns 8965 | 342 836 40 . 46 2667 119 . . . . . . 1082 2377 1456 Cannons 15799 | . . . . . 996 3702 608 450 . 1095 4384 2588 797 . 1179 Explosions 3490 | . . . . . 497 . 390 . . . 1393 172 817 . 221 Melee . | . . . . . . . . . . . . . . . . Ramming 164 | 14 10 10 . . 36 23 . . . . 32 38 . 1 . Kinetic 12199 | 342 836 40 . 46 2662 3186 153 97 . 461 1824 501 1294 703 54 Thermal 12765 | . . . . . 1001 635 455 353 . 634 2851 2259 322 1674 2581 Explosive 2439 | . . . . . 497 . 390 . . . 840 . 712 . . Electromagnetic 851 | . . . . . . . . . . . 262 . 368 . 221 Impact . | . . . . . . . . . . . . . . . . Slashing . | . . . . . . . . . . . . . . . . Piercing . | . . . . . . . . . . . . . . . . Highest Corruption 17 | . . . . . 1 . . 3 3 3 5 5 8 8 17 Average Corruption 3 | . . . . . 1 . . 3 3 3 3 5 7 7 8 Corruption Purged 8 | . . . . . . . . . . . . . . 8 . Corruption Blocked . | . . . . . . . . . . . . . . . . Effects 229 | . . . . . 37 . . 3 2 18 29 66 45 28 1 Message Errors 66 | . . . . . 11 . . . 2 8 9 20 11 5 . Matter Fused 56 | . . . . . 8 . . 3 . . 10 14 14 7 . Heat Flow Errors 23 | . . . . . 3 . . . . 1 3 6 6 4 . Energy Discharges 23 | . . . . . 5 . . . . 2 1 7 4 4 . Parts Rejected 2 | . . . . . . . . . . . . . . 1 1 Data Loss (minor) 23 | . . . . . 5 . . . . 3 3 6 5 1 . Data Loss (major) 14 | . . . . . 1 . . . . 4 . 7 1 1 . Misfires 8 | . . . . . 3 . . . . . 1 3 1 . . Alerts 7 | . . . . . 1 . . . . . 2 2 2 . . Weapon Failures 7 | . . . . . . . . . . . . 1 1 5 . Overload Shots 19 | . . . . . . . 2 . . 8 9 . . . . Effects 1 | . . . . . . . . . . . 1 . . . . Heat Surge 1 | . . . . . . . . . . . 1 . . . . Overflow Damage 869 | . . . . . 143 327 7 . . 49 111 23 152 . 57 Projectiles 668 | . . . . . 143 327 7 . . 49 60 9 16 . 57 Explosions 201 | . . . . . . . . . . . 51 14 136 . . Melee . | . . . . . . . . . . . . . . . . Knockbacks 47 | . . . . . 6 15 . 2 . . 18 4 2 . . Impact 2 | . . . . . 1 . . . . . . 1 . . . Kinetic 44 | . . . . . 5 15 . 2 . . 17 3 2 . . Secondary 1 | . . . . . . . . . . . 1 . . . . Self-Inflicted Damage 377 | . . . . . . . 14 . . . 176 . 84 . 103 Shots 9 | . . . . . . . 1 . . . 5 . 2 . 1 Rammed 26 | 2 5 1 . . 7 2 . . . . 3 5 . 1 . Targets Rammed 28 | 2 5 1 . . 7 3 . . . . 4 5 . 1 . Kicked . | . . . . . . . . . . . . . . . . Crushed 2 | . . . . . . 1 . . . . 1 . . . . Highest Temperature 392 | . 60 . . . 309 241 135 5 . 256 384 392 375 387 234 Average Temperature 94 | . 16 . . . 61 55 39 5 . 111 135 100 101 153 68 Received Heat Transfer 2778 | . 81 . . . 621 228 198 72 . 48 750 390 108 72 210 Effects 13 | . . . . . 1 2 . . . . 2 5 . 3 . Shutdowns 3 | . . . . . . . . . . . 1 1 . 1 . Energy Bleed 4 | . . . . . 1 . . . . . 1 . . 2 . Interference 5 | . . . . . . 2 . . . . . 3 . . . Short Circuit 1 | . . . . . . . . . . . . 1 . . . Siege Activations . | . . . . . . . . . . . . . . . . Robots Corrupted 1 | . . . . . . . . . . . . . 1 . . Combat Hostiles 1 | . . . . . . . . . . . . . 1 . . Parts Fried . | . . . . . . . . . . . . . . . . Impact Corruptions . | . . . . . . . . . . . . . . . . Robots Melted 7 | . . . . . . 1 . . . 1 . 1 . 2 2 Combat Hostiles 6 | . . . . . . 1 . . . 1 . 1 . 1 2 Parts Melted 51 | . . . . . 3 . 4 . . . 4 11 . 12 17 Heat Transferred 20072 | . . . . . 2405 965 581 481 . 718 3486 3406 383 3145 4502 Parts Sabotaged 3 | . . . . . . . . . . . 3 . . . . Parts Stolen . | . . . . . . . . . . . . . . . . Parts Stripped . | . . . . . . . . . . . . . . . . Power Chain Reactions 2 | . . . . . . . . . . . . . 1 . 1 Alert | -11 -10 -10 -10 -9 -8 -7 -7 -7 -7 -6 -6 -6 -6 -6 -6 ------- Run | Yrd Mat Min Exi Min Mat Fac Low Low Dat Pro Fac Ext Cet Arc Hub Peak Influence 980 | 50 158 31 . 67 689 509 . . . . 980 557 389 246 881 Initial 457 | . 3 31 . . . 312 . . . . 450 457 232 110 . Average 167 | 17 37 3 . 2 213 232 . . . . 563 308 140 24 288 Maximum Alert Level 3 | . . . . . 2 2 . . . . 3 2 1 1 3 Low Security (%) 67 | 100 100 100 . 100 66 48 . . . . . 8 72 94 51 Level 1 14 | . . . . . 4 37 . . . . 16 72 27 5 9 Level 2 15 | . . . . . 29 13 . . . . 61 19 . . 35 Level 3 1 | . . . . . . . . . . . 22 . . . 3 Level 4 . | . . . . . . . . . . . . . . . . Level 5 . | . . . . . . . . . . . . . . . . High Security . | . . . . . . . . . . . . . . . . Max Security . | . . . . . . . . . . . . . . . . Squads Dispatched 34 | . 1 1 . . 6 7 . . . . 10 2 2 . 5 Investigation 5 | . 1 1 . . . . . . . . . 1 2 . . Extermination 9 | . . . . . . 3 . . . . 4 . . . 2 Reinforcement 10 | . . . . . 3 2 . . . . 4 1 . . . Assault 4 | . . . . . . 1 . . . . 2 . . . 1 Garrison 6 | . . . . . 3 1 . . . . . . . . 2 Intercept . | . . . . . . . . . . . . . . . . Searches Triggered 1 | . . . . . . . . . . . 1 . . . . Data Miner Redirects 1 | . . . . . . . . . . . . . . . 1 Construction Impeded 3 | . . . . . 1 1 . . . . 1 . . . . Haulers Reinforced 1 | . . . . . . 1 . . . . . . . . . Active Scanning Responses . | . . . . . . . . . . . . . . . . Cargo Convoy Interrupts 1 | . . . . . . . . . . . 1 . . . . Stealth | -11 -10 -10 -10 -9 -8 -7 -7 -7 -7 -6 -6 -6 -6 -6 -6 --------- Run | Yrd Mat Min Exi Min Mat Fac Low Low Dat Pro Fac Ext Cet Arc Hub Distress Signals 18 | . 4 2 . . 5 3 . . . . . . 1 . 3 Communications Jammed . | . . . . . . . . . . . . . . . . Distress Signals . | . . . . . . . . . . . . . . . . Times Spotted 306 | . 41 5 . 2 64 27 9 3 . 7 41 32 29 13 33 Peak Tracking Total 7 | . 6 1 . 2 7 3 7 3 . 5 6 4 7 2 7 Tactical Retreats 12 | . 1 1 . . 3 . 1 . . . 1 1 1 . 3 Traps | -11 -10 -10 -10 -9 -8 -7 -7 -7 -7 -6 -6 -6 -6 -6 -6 ------- Run | Yrd Mat Min Exi Min Mat Fac Low Low Dat Pro Fac Ext Cet Arc Hub Traps Triggered 6 | . 1 . . . 2 . . . . . 3 . . . . Indirectly . | . . . . . . . . . . . . . . . . Trap Hack Attempts . | . . . . . . . . . . . . . . . . Triggered . | . . . . . . . . . . . . . . . . Disarmed . | . . . . . . . . . . . . . . . . Reprogrammed . | . . . . . . . . . . . . . . . . Reused . | . . . . . . . . . . . . . . . . Traps Extracted . | . . . . . . . . . . . . . . . . Installed . | . . . . . . . . . . . . . . . . Triggered 4 | . . . . . . . . . . . 4 . . . . Most Traps Carried 4 | . . 4 4 4 4 . . . . . . . . . . Machines | -11 -10 -10 -10 -9 -8 -7 -7 -7 -7 -6 -6 -6 -6 -6 -6 ---------- Run | Yrd Mat Min Exi Min Mat Fac Low Low Dat Pro Fac Ext Cet Arc Hub Machines Disabled 45 | . . . . . 4 6 1 . . . 8 2 6 5 13 Max in Single Turn 11 | . . . . . 1 1 1 . . . 4 1 1 1 11 Garrison Access 4 | . . . . . . 1 . . . . 2 . . . 1 Network Hub 1 | . . . . . . . . . . . . . . . 1 Energy Cycler 1 | . . . . . . . . . . . . 1 . . . Machines Repaired . | . . . . . . . . . . . . . . . . Machines Dismantled . | . . . . . . . . . . . . . . . . Machines Sabotaged . | . . . . . . . . . . . . . . . . Overloaded Fab Kills . | . . . . . . . . . . . . . . . . Hacking | -11 -10 -10 -10 -9 -8 -7 -7 -7 -7 -6 -6 -6 -6 -6 -6 --------- Run | Yrd Mat Min Exi Min Mat Fac Low Low Dat Pro Fac Ext Cet Arc Hub Machines Accessed 66 | . 11 1 2 . 14 10 2 1 4 . 7 6 3 1 4 Terminals 39 | . 8 . . . 10 6 . 1 . . 2 6 3 . 3 Fabricators . | . . . . . . . . . . . . . . . . Repair Stations 6 | . 1 . . . 2 1 . . . . 2 . . . . Recycling Units 5 | . 2 . . . 1 1 . . . . 1 . . . . Scanalyzers . | . . . . . . . . . . . . . . . . Garrison Access 6 | . . . . . 1 2 . . . . 2 . . . 1 Total Hacks 218 | . 38 1 2 . 44 28 8 1 30 . 14 9 8 25 10 Successful 146 | . 24 1 2 . 25 16 8 1 30 . 4 2 2 25 6 Failed 72 | . 14 . . . 19 12 . . . . 10 7 6 . 4 Catastrophic 14 | . 1 . . . 1 4 . . . . 3 2 3 . . Database Lockouts . | . . . . . . . . . . . . . . . . Manual 100 | . 25 . 1 . 34 17 . . . . 6 9 . 2 6 Terminals 111 | . 30 . . . 34 17 . 1 . . 4 9 8 . 8 Fabricators . | . . . . . . . . . . . . . . . . Repair Stations 19 | . 2 . . . 4 8 . . . . 5 . . . . Recycling Units 13 | . 6 . . . 4 1 . . . . 2 . . . . Scanalyzers . | . . . . . . . . . . . . . . . . Garrison Access 9 | . . . . . 2 2 . . . . 3 . . . 2 Terminal Hacks 89 | . 9 1 2 . 9 . 8 1 30 . . 1 2 25 1 Record 46 | . . . 1 . . . 7 1 11 . . . 1 25 . Part Schematic 11 | . 1 . . . . . . . 10 . . . . . . Robot Schematic 6 | . . . . . . . . . 6 . . . . . . Robot Analysis 6 | . 4 . . . 2 . . . . . . . . . . Prototype ID Bank 5 | . 2 . . . . . . . 3 . . . . . . Open Door 3 | . . 1 . . . . 1 . . . . . 1 . . Alert Level 5 | . 1 . . . 3 . . . . . . . . . 1 Unreport Threat 3 | . . . . . 2 . . . . . . 1 . . . Locate Traps 1 | . . . . . 1 . . . . . . . . . . Patrol Status 1 | . . . . . 1 . . . . . . . . . . Hauler Manifests 1 | . 1 . . . . . . . . . . . . . . Derelict Proto ID Bank 1 | . . . 1 . . . . . . . . . . . . Fabricator Hacks . | . . . . . . . . . . . . . . . . Repair Station Hacks 13 | . 2 . . . 3 6 . . . . 2 . . . . Scan Component 8 | . 1 . . . 2 3 . . . . 2 . . . . Repair 5 | . 1 . . . 1 3 . . . . . . . . . Recycling Unit Hacks 4 | . 3 . . . 1 . . . . . . . . . . Retrieve Components 4 | . 3 . . . 1 . . . . . . . . . . Scanalyzer . | . . . . . . . . . . . . . . . . Garrison Access Hacks 2 | . . . . . . 1 . . . . 1 . . . . Seal Access 2 | . . . . . . 1 . . . . 1 . . . . Unauthorized Hacks 38 | . 10 . . . 12 9 . . . . 1 1 . . 5 Terminals 37 | . 9 . . . 12 9 . . . . 1 1 . . 5 Assimilate 2 | . . . . . 2 . . . . . . . . . . Botnet 13 | . 3 . . . 4 3 . . . . . 1 . . 2 Operators 3 | . 1 . . . 1 1 . . . . . . . . . Skim 19 | . 5 . . . 5 5 . . . . 1 . . . 3 Fabricators . | . . . . . . . . . . . . . . . . Repair Stations . | . . . . . . . . . . . . . . . . Recycling Units 1 | . 1 . . . . . . . . . . . . . . Recyclers 1 | . 1 . . . . . . . . . . . . . . Scanalyzers . | . . . . . . . . . . . . . . . . Garrison Access . | . . . . . . . . . . . . . . . . Data Cores Recovered 1 | . . . . . . . . . . . 1 . . . . Used . | . . . . . . . . . . . . . . . . Hacking Detections 48 | . 9 . . . 13 9 . . . . 6 6 2 . 3 Full Trace Events 4 | . 1 . . . . . . . . . . 1 2 . . Feedback Events . | . . . . . . . . . . . . . . . . Feedback Blocked . | . . . . . . . . . . . . . . . . Robot Schematics Acquired 6 | . . . . . . . . . 6 . . . . . . Robots Built . | . . . . . . . . . . . . . . . . Authchips . | . . . . . . . . . . . . . . . . Time . | . . . . . . . . . . . . . . . . Total Robot Build Rating . | . . . . . . . . . . . . . . . . Part Schematics Acquired 11 | . 1 . . . . . . . 10 . . . . . . Parts Built . | . . . . . . . . . . . . . . . . Authchips . | . . . . . . . . . . . . . . . . Time . | . . . . . . . . . . . . . . . . Total Part Build Rating . | . . . . . . . . . . . . . . . . Parts Repaired 5 | . 1 . . . 1 3 . . . . . . . . . Time 172 | . 26 . . . 38 108 . . . . . . . . . Parts Recycled . | . . . . . . . . . . . . . . . . Recycled Matter . | . . . . . . . . . . . . . . . . Retrieved Matter . | . . . . . . . . . . . . . . . . Retrieved Components 21 | . 12 . . . 9 . . . . . . . . . . Parts Scanalyzed . | . . . . . . . . . . . . . . . . Part Schematics Acquired . | . . . . . . . . . . . . . . . . Parts Damaged . | . . . . . . . . . . . . . . . . Bothacking | -11 -10 -10 -10 -9 -8 -7 -7 -7 -7 -6 -6 -6 -6 -6 -6 ------------ Run | Yrd Mat Min Exi Min Mat Fac Low Low Dat Pro Fac Ext Cet Arc Hub Used RIF Installer . | . . . . . . . . . . . . . . . . Robots Hacked . | . . . . . . . . . . . . . . . . Non-combat . | . . . . . . . . . . . . . . . . Combat . | . . . . . . . . . . . . . . . . Robot Hacks Applied . | . . . . . . . . . . . . . . . . Relay Couplers Released 5 | . . . . . . . . . . . 2 . . . 3 Machine Destruction 5 | . . . . . . . . . . . 2 . . . 3 Fabnet Peak Effective % . | . . . . . . . . . . . . . . . . Robots Rewired 13 | . . . . . . . 2 . . . . 11 . . . Allies Hacked . | . . . . . . . . . . . . . . . . Hacks Repelled . | . . . . . . . . . . . . . . . . Allies | -11 -10 -10 -10 -9 -8 -7 -7 -7 -7 -6 -6 -6 -6 -6 -6 -------- Run | Yrd Mat Min Exi Min Mat Fac Low Low Dat Pro Fac Ext Cet Arc Hub Total Allies 19 | . . 3 . . . . 2 . . . . 14 . . . Largest Group 7 | . . 3 1 1 . . 2 . . . . 7 6 . . Highest-Rated Group 214 | . . 40 16 16 . . 46 . . . . 214 188 . . Highest-Rated Ally 39 | . . 16 16 16 . . 30 . . . . 39 39 . . Total Orders . | . . . . . . . . . . . . . . . . Ally Attacks 172 | . . 28 . 3 . . 8 . . . . 93 40 . . Total Damage 2556 | . . 254 . 44 . . 254 . . . . 1339 665 . . Kills 14 | . . 5 . 1 . . . . . . . 6 2 . . Allies Corrupted . | . . . . . . . . . . . . . . . . Allies Melted . | . . . . . . . . . . . . . . . . Intel | -11 -10 -10 -10 -9 -8 -7 -7 -7 -7 -6 -6 -6 -6 -6 -6 ------- Run | Yrd Mat Min Exi Min Mat Fac Low Low Dat Pro Fac Ext Cet Arc Hub Robot Analysis Total 6 | . 4 . . . 2 . . . . . . . . . . Derelict Logs Recovered 3 | . . 2 . . . . . . . 1 . . . . . Drone Launches . | . . . . . . . . . . . . . . . . Drone Recoveries . | . . . . . . . . . . . . . . . . Exploration | -11 -10 -10 -10 -9 -8 -7 -7 -7 -7 -6 -6 -6 -6 -6 -6 ------------- Run | Yrd Mat Min Exi Min Mat Fac Low Low Dat Pro Fac Ext Cet Arc Hub Turns Passed 36904 | 699 2760 3793 592 914 7330 2880 2519 1815 262 1074 2416 2658 1328 4845 1019 Spaces Moved 10854 | 273 996 872 245 366 2089 988 959 722 105 411 821 734 450 495 328 Core 514 | 26 . 270 . . . . . . . . . . 36 171 11 Treads 10113 | 247 996 602 245 366 2089 988 959 722 105 411 821 734 229 282 317 Legs 227 | . . . . . . . . . . . . . 185 42 . Wheels . | . . . . . . . . . . . . . . . . Hover . | . . . . . . . . . . . . . . . . Flight . | . . . . . . . . . . . . . . . . Fastest Speed 50 | 50 160 240 240 240 240 240 240 246 246 246 240 240 50 190 50 Average Speed 286 | 149 234 428 240 240 240 243 250 246 246 246 243 240 249 939 233 Slowest Speed 2300 | 160 240 850 240 240 320 320 326 246 246 246 245 240 320 2300 240 Overloaded Moves . | . . . . . . . . . . . . . . . . Propulsion Burnouts . | . . . . . . . . . . . . . . . . Robots Hopped . | . . . . . . . . . . . . . . . . Cave-ins Triggered . | . . . . . . . . . . . . . . . . Exploration Rate (%) 63 | 12 99 87 61 60 73 28 94 80 72 53 24 70 88 89 23 Regions Visited 15 Branch Regions 11 Pre-discovered Areas 4 | . . . 1 . 1 . . . 1 1 . . . . . Known Exits Taken 3 | . . . 1 . . . . . . 1 . 1 . . . Unknown Exits Taken 12 | 1 1 1 . 1 1 1 1 1 1 . 1 . 1 1 . Scrap Searched 9 | . . . . 2 . . 4 3 . . . . . . . Spaces Dug 47 | . 6 . . . 25 4 3 . . . 6 3 . . . Terrain Destroyed 544 | . 6 . . . 71 58 22 6 . 6 121 25 34 1 194 Melee 16 | . . . . . 15 . 1 . . . . . . . . Projectile 210 | . 6 . . . 28 58 13 6 . 6 43 20 4 1 25 AOE 318 | . . . . . 28 . 8 . . . 78 5 30 . 169 Terrain Rammed . | . . . . . . . . . . . . . . . . Walls Destroyed . | . . . . . . . . . . . . . . . . Machines Disabled . | . . . . . . . . . . . . . . . . Actions | -11 -10 -10 -10 -9 -8 -7 -7 -7 -7 -6 -6 -6 -6 -6 -6 --------- Run | Yrd Mat Min Exi Min Mat Fac Low Low Dat Pro Fac Ext Cet Arc Hub Total 15410 | 515 1275 922 254 399 4178 1275 1044 742 110 440 1058 1520 607 602 469 Wait 3089 | 202 169 19 3 20 1785 133 22 4 . 5 69 564 19 19 56 Move 10839 | 272 995 871 244 365 2088 987 958 721 104 410 820 733 449 494 328 Hop . | . . . . . . . . . . . . . . . . Pick Up 150 | 7 18 9 2 2 25 9 8 3 . . 15 17 27 3 5 Fast Attach 105 | 7 2 . . 2 24 8 2 1 3 1 9 5 21 14 6 Attach 40 | . . 1 . . 7 3 1 . . 2 10 4 5 1 6 Detach 23 | . 1 1 . . 3 4 . . . . 4 . 6 4 . Swap 217 | 2 10 6 . 3 56 45 19 2 . 7 29 14 12 3 9 Drop 206 | 1 8 10 5 5 55 17 13 3 3 1 21 25 13 13 13 Fire 590 | 22 67 4 . 2 113 66 14 8 . 14 77 52 55 50 46 Melee 16 | . . . . . 15 . 1 . . . . . . . . Ram . | . . . . . . . . . . . . . . . . Kick . | . . . . . . . . . . . . . . . . Crush 28 | 2 5 1 . . 7 3 . . . . 4 5 . 1 . Escape Stasis . | . . . . . . . . . . . . . . . . Rewire 107 | . . . . . . . 6 . . . . 101 . . . Trap . | . . . . . . . . . . . . . . . . Miscellaneous . | . . . . . . . . . . . . . . . . Route ------- -11/Scrapyard -10/Materials (discovered 6 exits: *Mat x3 / *Min x2 / [*Sub]) -10/Mines (discovered 3 exits: *Mat x2 / *Exi) -10/Exiles (discovered 2 exits: *Min x2) -9/Mines -8/Materials (discovered 3 exits: *Fac x2 / *Sto) -7/Factory (discovered 3 exits: Fac x2 / *Low) -7/Lower Caves -7/Lower Caves (discovered 2 exits: *Fac / *Dat) -7/Data Miner -6/Proximity Caves -6/Factory (discovered 5 exits: *Fac x3 / [*Low] / *Ext) -6/Extension (discovered 3 exits: *Fac x2 / *Cet) -6/Cetus (discovered 2 exits: *Fac / *Arc) -6/Archives (discovered 3 exits: *Fac / *Hub x2) -6/Hub_04(d) (discovered 1 exit: *Fac) History --------- Turn | Location | Event 3 | -11/Scrapyard | Discovered new exit (range 16) 700 | -11/Scrapyard | Entered Materials 701 | -10/Materials | Build established: Mutant 877 | -10/Materials | Discovered new exit (range 14) 1233 | -10/Materials | Discovered new exit (range 15) 1298 | -10/Materials | Discovered new exit (range 9) 1591 | -10/Materials | Learned location of 1 exit from Recycling 1617 | -10/Materials | Discovered new exit (range 8) 1626 | -10/Materials | Learned location of 1 exit from Recycling 1653 | -10/Materials | Loaded intel: 2 recycling unit locations 1669 | -10/Materials | Learned Storage emergency access door positions 1678 | -10/Materials | Learned 4 Recycling zone layouts 1679 | -10/Materials | Learned location of 2 exits from Mines 1719 | -10/Materials | Learned Storage terminal intel 1755 | -10/Materials | Identified exit to Materials 2035 | -10/Materials | Discovered new exit (range 8) 2479 | -10/Materials | Repaired Lgt. Treads 3460 | -10/Materials | Entered Mines 3472 | -10/Mines | Assembled infested the area 3477 | -10/Mines | Assisted by a Guerilla fighting off Assembled 3485 | -10/Mines | Learned Materials interactive machine intel 3586 | -10/Mines | Deemed a non-threat by the Exiles lab entrance 3586 | -10/Mines | Discovered new exit (range 5) 6180 | -10/Mines | Assisted by bots powering up and referring to "LRC-V3" 6469 | -10/Mines | Found a hidden stash of uninstalled traps 6824 | -10/Mines | Met a Derelict shopkeep closing up shop 7253 | -10/Mines | Entered Exiles 7253 | -10/Exiles | Accompanied by 1 ally 7254 | -10/Exiles | Identified exit to Mines 7311 | -10/Exiles | Met 8R-AWN 7352 | -10/Exiles | Met EX-HEX 7421 | -10/Exiles | Met EX-BIN 7455 | -10/Exiles | Aligned with FarCom system 7457 | -10/Exiles | Given EX-Vault access code 7515 | -10/Exiles | Opened EX-Vault 7531 | -10/Exiles | Found XL Autogun Array 7583 | -10/Exiles | Warned to stay clear of 0b10 Research branches 7660 | -10/Exiles | Met EX-DEC 7672 | -10/Exiles | Learned location of Zion (-6) 7845 | -10/Exiles | Left Exiles lab with XL Autogun Array 7845 | -10/Exiles | Entered Mines 7845 | -9/Mines | Accompanied by 1 ally 8612 | -9/Mines | Discovered new exit (range 10) 8666 | -9/Mines | Found a damaged Exp. Sensor Array with a note attached 8672 | -9/Mines | Found Prototype Device 8672 | -9/Mines | Identified Exp. Sensor Array 8759 | -9/Mines | Entered Materials 8759 | -8/Materials | Evolved 4 slots: Utility x2, Weapon x2 8760 | -8/Materials | Identified exit to Storage 8761 | -8/Materials | Loaded intel: 19 interactive machine locations 9063 | -8/Materials | Build established: Skirmisher 9597 | -8/Materials | Discovered new exit (range 9) 12545 | -8/Materials | Learned Factory interactive machine intel 12625 | -8/Materials | Learned location of 1 exit from Extension 12650 | -8/Materials | Learned Factory trap positions 12663 | -8/Materials | Learned location of 1 exit from Recycling 12665 | -8/Materials | Learned Factory recycling unit intel 12666 | -8/Materials | Learned location of Recycling (-8) 12667 | -8/Materials | Learned 2 Lower Caves zone layouts 12673 | -8/Materials | Learned 4 Recycling zone layouts 12691 | -8/Materials | Learned Storage emergency access door positions 12721 | -8/Materials | Learned location of 1 exit from Storage 14754 | -8/Materials | Discovered new exit (range 15) 14764 | -8/Materials | Lost 9 parts (1p2n2u4w) 15041 | -8/Materials | Build established: Scavenger-Mutant 15401 | -8/Materials | Build established: Scavenger-Skirmisher 15768 | -8/Materials | Repaired Hvy. Assault Cannon 16089 | -8/Materials | Entered Factory 16089 | -7/Factory | Evolved 2 slots: Propulsion x1, Utility x1 16090 | -7/Factory | Identified exit to Factory 16091 | -7/Factory | Loaded intel: 93 trap records 16092 | -7/Factory | Loaded intel: 52 interactive machine locations 16093 | -7/Factory | Loaded intel: 6 recycling unit locations 17862 | -7/Factory | Repaired Hvy. Assault Cannon 17889 | -7/Factory | Repaired Lgt. Treads 17938 | -7/Factory | Repaired Gauss Cannon 18574 | -7/Factory | Garrison activated, responded to threat 18889 | -7/Factory | First assault squad dispatched 18935 | -7/Factory | Discovered new exit (range 14) 18969 | -7/Factory | Entered Lower Caves 18979 | -7/Lower Caves | Attracted the attention of an 0b10 outpost 19032 | -7/Lower Caves | Destroyed 7 combat bots 19190 | -7/Lower Caves | Attacked by a delusional Derelict stockpiling parts 19311 | -7/Lower Caves | Encountered a Warlord checkpoint 19856 | -7/Lower Caves | Build established: Skirmisher 20261 | -7/Lower Caves | Discovered new exit (range 7) 21177 | -7/Lower Caves | Learned Armory emergency access door positions 21177 | -7/Lower Caves | Learned Armory terminal intel 21488 | -7/Lower Caves | Entered another Lower Caves area 21652 | -7/Lower Caves | Encountered a Warlord checkpoint 21888 | -7/Lower Caves | Discovered new exit (range 13) 23303 | -7/Lower Caves | Entered Data Miner 23305 | -7/Data Miner | Discovered new exit (range 6) 23352 | -7/Data Miner | Met Data Miner 23435 | -7/Data Miner | Learned location of Section 7 (-2) 23435 | -7/Data Miner | Acquired the access code to Warlord's prototype stash 23475 | -7/Data Miner | Received God Mode back door access code from Data Miner 23565 | -7/Data Miner | Entered Proximity Caves 23661 | -6/Proximity Caves | Spotter reported a threat 23679 | -6/Proximity Caves | Spotter reported a threat 23696 | -6/Proximity Caves | Spotted B-75 Beast 23779 | -6/Proximity Caves | Destroyed B-75 Beast 23795 | -6/Proximity Caves | Spotter reported a threat 24069 | -6/Proximity Caves | Build established: Tank 24639 | -6/Proximity Caves | Entered Factory 24639 | -6/Factory | Evolved 2 slots: Propulsion x1, Utility x1 24640 | -6/Factory | Identified exit to Factory 24926 | -6/Factory | Build established: Skirmisher 24989 | -6/Factory | Search patrols dispatched 25441 | -6/Factory | Discovered new exit (range 16) 25679 | -6/Factory | Discovered exit to Factory (range 10) 25689 | -6/Factory | First assault squad dispatched 26425 | -6/Factory | Cargo convoy interrupted 26442 | -6/Factory | Build established: Tank 26859 | -6/Factory | Lost 4 parts (2n1u1w) 27043 | -6/Factory | Discovered new exit (range 6) 27055 | -6/Factory | Entered Extension 27056 | -6/Extension | Identified exit to Cetus 27607 | -6/Extension | Rescued a captive Derelict 27636 | -6/Extension | Rescued a captive Derelict 27636 | -6/Extension | Rescued a captive Derelict 27674 | -6/Extension | Build established: Scavenger-Tank 28095 | -6/Extension | Energy Cycler disabled 28095 | -6/Extension | Rescued a captive Derelict 28096 | -6/Extension | Rescued a captive Derelict 28101 | -6/Extension | Rescued a captive Derelict 28110 | -6/Extension | Rescued a captive Derelict 28543 | -6/Extension | Spotted B-75 Beast 28584 | -6/Extension | Destroyed B-75 Beast 28610 | -6/Extension | Discovered exit to Factory (range 16) 28614 | -6/Extension | Lost 5 allies 28625 | -6/Extension | Extracted ID and sensor layout for unrecognized location from A7's data core 29155 | -6/Extension | Disrupted transfer network 29375 | -6/Extension | Build established: Scavenger-Skirmisher 29589 | -6/Extension | Disrupted transfer network 29595 | -6/Extension | Discovered exit to Factory (range 13) 29713 | -6/Extension | Entered Cetus 29713 | -6/Cetus | Accompanied by 6 allies 29746 | -6/Cetus | Spotted Cetus Guard 29746 | -6/Cetus | Spotted Cetus Guard 29749 | -6/Cetus | Spotted Cetus Guard 29752 | -6/Cetus | Spotted Cetus Guard 29758 | -6/Cetus | Destroyed Cetus Guard 29764 | -6/Cetus | Allies destroyed Cetus Guard 29789 | -6/Cetus | Allies destroyed Cetus Guard 29800 | -6/Cetus | Lost 5 allies 29806 | -6/Cetus | Lost 4 parts (2n2w) 29994 | -6/Cetus | Discovered exit to Factory (range 15) 30174 | -6/Cetus | Build established: Scavenger-Tank 30463 | -6/Cetus | Security sweep announced 30514 | -6/Cetus | Cetus Manufacturing Module disabled 30585 | -6/Cetus | Lost 10 parts (1p2n4u3w) 30825 | -6/Cetus | Destroyed 12 combat bots 31002 | -6/Cetus | Discovered new exit (range 15) 31041 | -6/Cetus | Entered Archives 31064 | -6/Archives | Build established: Scavenger-Skirmisher 31159 | -6/Archives | Core integrity fell below 50% 31294 | -6/Archives | Discovered exit to Factory (range 15) 31323 | -6/Archives | Unable to access archive contents 31333 | -6/Archives | Discovered new exit (range 14) 31367 | -6/Archives | Discovered new exit (range 14) 35716 | -6/Archives | Unable to access archive contents 35740 | -6/Archives | Unable to access archive contents 35886 | -6/Archives | Entered Hub_04(d) 35975 | -6/Hub_04(d) | Discovered exit to Factory (range 7) 35977 | -6/Hub_04(d) | Spotted B-75 Beast 36043 | -6/Hub_04(d) | Destroyed B-75 Beast 36402 | -6/Hub_04(d) | Garrison activated, responded to threat 36428 | -6/Hub_04(d) | Destroyed 8 combat bots 36723 | -6/Hub_04(d) | Incoming assault squad redirected 36868 | -6/Hub_04(d) | Network Hub disabled 36871 | -6/Hub_04(d) | Spotted Lightning 36885 | -6/Hub_04(d) | Spotted Lightning 36885 | -6/Hub_04(d) | Spotted Lightning 36888 | -6/Hub_04(d) | System corruption reached 10% 36892 | -6/Hub_04(d) | Core integrity fell below 20% 36900 | -6/Hub_04(d) | Released all parts (7) 36905 | -6/Hub_04(d) | Destroyed by Lightning with EMDS Last Messages --------------- 36885_ EMDS Slug penetrates Wall. 36887_ Penetrated by EMDS Slug. 36887_ Phase Cannon destroyed. 36889_ Lgt. Treads destroyed. 36891_ Penetrated by EMDS Slug. 36892_ System corrupted: Adv. Heat Sink rejected. 36892_ P-60 Hacker resets I-47 Archangel, system corruption cleaned. 36892_ Penetrated by EMDS Slug. 36896_ Imp. Medium Treads destroyed. 36899_ Hvy. Laser destroyed. 36899_ Penetrated by EMDS Slug. 36900_ Released Adv. Heat Sink. 36900_ Released Huge Storage Unit. 36900_ Released Core Analyzer. 36900_ Released Rnf. Deuterium Engine. 36900_ Released Adv. Heat Sink. 36900_ Released Gatling Laser. 36900_ Released Magnetic Acceleration Cannon. 36905_ Penetrated by EMDS Slug. Map ----- +----------------------------------------------------+ | | | | | | | | | | | | | | | | | | | | | | | | | | | | | ??????????#############??????????????????????????? | | ??????????# !#??????????????????????????? | | ??????????# =!! #??????????????????????????? | | ??????????# =! #??????????????????????????? | | ??????????# =! #??????????????????????????? | | ??????????# < ==#??????????????????????????? | | ??????????# !! ###????###?????????????????? | | ??????????# %!"#????# #############?????? | | ????????### = ! *######## #?????? | | #########"" # ; ##????? | | # [![!#!"#####;###;; ;;;;;;;;;;;;" #????? | | # *! #"#### ; @ ;; " #????? | | # * + k ; ;; = " #????? | | # ########T##k ;] ;; " ##???? | | # ##?###?###; # ;; " #???? | | # ####[###?#; i;;;;;h;;; """"""??? | | # #=%%!## #^ h ; " ??? | | # [ #!!![## " # ^h %; " ??? | | # #*""=## " #^ ;[;; " ??? | | ####+##+##!G[[## " # """ =!!=; " ??? | | #[""%##= # R=!!!* ! " ??? | | # "%=## " / [p!![!] """""???? | | # *%## # /]]=];;;;;;""""" "##???? | | ###### # =## # ###;*###!;;;;""""# # ????? | | ???#"" #=/ "## # # # #?????? | | ???#T #=/"%###/## # " " " "####?????? | | ???### #/ "+ # " " " ##????????? | | ?????# # # /[* # " " #?????????? | | ?????# # * #!%=%#### "#????????? | | ?????# ######= %[###############"""""##????????? | | ?????# !! =#### #?? #?????????? | | ?????# / % %%+ "" ??? #?????????? | | ?????# *=%%#### "" ????!!! #?????????? | | ?????########### #?????? ? ??????!!???????????? | | ??????????? # #?????????????????????????????? | | ????????? ?# #?????????????????????????????? | +----------------------------------------------------+ Best States ------------- Heat Dissipation 96 Energy Generation 18 Energy Capacity 310 Matter Stores 300 Matter Capacity 300 Sight Range 16 Terrain Scan Range 16 Terrain Scan Density 210 Armor Coverage 1050 Resistance: KI 30 Core Shielding 20 Utility Shielding 90 Weapon Cycling 15 Evasion (%) 55 Core Analysis 6 Recoil Reduction 4 Matter Filtering 30 Energy Filtering 30 Offensive Hacking 23 Defensive Hacking 12 Item Schematics ----------------- Hcp. Storage Unit | -10/Materials | Hacked Combat Drone Bay | -7/Data Miner | Free Lgt. Regenerative Plating | -7/Data Miner | Free Cld. Aerolev Unit | -7/Data Miner | Free Exp. Targeting Computer | -7/Data Miner | Free Prc. Rocket Launcher | -7/Data Miner | Free Linear Gravjet | -7/Data Miner | Free Mni. Drone Bay | -7/Data Miner | Free KE Penetrator | -7/Data Miner | Free Mic. Fission Core | -7/Data Miner | Free Railgun | -7/Data Miner | Free Robot Schematics ------------------ O-24 Administrator | -7/Data Miner | Free B-48 Gladiator | -7/Data Miner | Free S-27 Virus | -7/Data Miner | Free M-22 Extractor | -7/Data Miner | Free X-62 Marksman | -7/Data Miner | Free B-60 Warrior | -7/Data Miner | Free Fabricated ------------ Nothing Alien Tech Used ----------------- None Achievements -------------- None Challenges ------------ None Game ------ Seed AlertControlCharge Manual? 0 Play Time 03:21:22 Cumulative 116.2 hours Start 2024.08.29 @ 14:12:08 End 2024.08.29 @ 23:21:41 Sessions 12 Manual Loads 0 Difficulty Rogue Special Mode None Game No. 74 Rogue 61 Adventurer 13 Explorer 0 Win Type - Total 1 Types 1/0/0/0/0/0/0/0/0 Lore% 42 Gallery% 56 Achievement% 46 Wizard Run 0 Options --------- Layout 2 ASCII 0 Keyboard 1 Movement Numpad Keybinds 0 Fullscreen 2 Font 16/Swanston Map View 55x47 Zoom Use 0% Tactical HUD 1 Map Filters NONE Filters NONE Steam 0 RUN: 7b3508f9-0b16-4d2f-9a27-fe611ce7e45a